Cogmind - Beta 14 @@@ ROGUE MODE // 2025.04.29 @ 20:14:20 Player: DGSTER Result: Destroyed by Enhanced Grunt with Neutron Cannon Performance ------------- Evolutions (3) 1500 Regions Visited (7) 1400 Robots Destroyed (66) 330 Value Destroyed (2558) 2558 Prototype IDs (17) 340 Alien Tech Used (0) 0 Bonus (300) 300 TOTAL SCORE: 6428 Bonus ------- Met Data Miner 300 Cogmind --------- Core Integrity 0/700 Matter 105/300 Energy 290/290 System Corruption 20% Temperature Cool (0) Movement Core (550) Ox10 Location -7/Data Miner Parts ------- > --- POWER (1) -------- Improved Deuterium Engine > --- PROPULSION (3) --- (None) > --- UTILITY (7) ------ Improved Heat Sink Medium Storage Unit Improved Signal Interpreter Improved Terrain Scan Processor > --- WEAPON (2) ------- Cooled Pulse Rifle Heavy Missile Launcher > --- INVENTORY (10) --- Reinforced Deuterium Engine Large Storage Unit Machine Analyzer Energy Filter Hacking Suite System Shield Heavy Particle Gun Beamcaster Peak State ------------ > --- POWER ------------ Deuterium Engine > --- PROPULSION ------- Carbon-fiber Leg Titanium Leg > --- UTILITY ---------- Improved Cooling System Large Storage Unit Machine Analyzer Improved Signal Interpreter Advanced Targeting Computer System Shield System Shield > --- WEAPON ----------- Particle Gun Heavy Laser > --- INVENTORY -------- Micro Nuclear Core Thermal Generator Improved Heat Sink Medium Storage Unit Machine Analyzer Improved Signal Interpreter Hacking Suite System Shield Heavy Particle Gun Cooled Pulse Rifle Heavy Particle Cannon Mini Grenade Launcher Heavy Missile Launcher [Rating: 39] Favorites ----------- Power Improved Deuterium Engine Engine Improved Deuterium Engine Power Core Light Nuclear Core Propulsion Aluminum Leg Treads Light Treads Leg Aluminum Leg Utility Large Storage Unit Device Improved Heat Sink Storage Large Storage Unit Processor Advanced Targeting Computer Hackware System Shield Protection Hardened Light Armor Plating Weapon Particle Gun Energy Gun Particle Gun Energy Cannon Heavy Particle Cannon Launcher Heavy Missile Launcher Build | -11 -10 -9 -8 -7 -7 -7 -7 ------- Run | Yrd Mat Mat Mat Fac Low Low Dat Slots Evolved 6 | . . 2 2 2 . . . Power . | . . . . . . . . Propulsion 1 | . . . 1 . . . . Utility 5 | . . 2 1 2 . . . Weapon . | . . . . . . . . Parts Attached 88 | 5 6 10 15 29 6 14 3 Power 10 | 1 2 1 . 4 1 1 . Engine 8 | 1 2 1 . 2 1 1 . Core 2 | . . . . 2 . . . Reactor . | . . . . . . . . Propulsion 16 | 2 1 3 4 3 2 1 . Treads 2 | . . . . . 1 1 . Leg 14 | 2 1 3 4 3 1 . . Wheel . | . . . . . . . . Hover . | . . . . . . . . Flight . | . . . . . . . . Utility 32 | 1 2 4 6 10 2 7 . Device 12 | . 1 1 3 2 1 4 . Storage 7 | 1 . 1 . 4 . 1 . Processor 9 | . 1 2 2 2 . 2 . Hackware 2 | . . . . 2 . . . Protection 2 | . . . 1 . 1 . . Artifact . | . . . . . . . . Weapon 30 | 1 1 2 5 12 1 5 3 Energy Gun 18 | 1 1 2 3 9 . 1 1 Energy Cannon 6 | . . . . 2 1 2 1 Ballistic Gun . | . . . . . . . . Ballistic Cannon . | . . . . . . . . Launcher 6 | . . . 2 1 . 2 1 Special Weapon . | . . . . . . . . Impact Weapon . | . . . . . . . . Slashing Weapon . | . . . . . . . . Piercing Weapon . | . . . . . . . . Special Melee Weapon . | . . . . . . . . Unidentified Prototypes 3 | . . . . 2 1 . . Parts Lost 30 | . 1 . 7 4 1 12 5 Power 2 | . 1 . . . . 1 . Propulsion 9 | . . . 2 2 1 3 1 Utility 12 | . . . 3 . . 6 3 Weapon 7 | . . . 2 2 . 2 1 Highest Loss Streak 7 | . 1 . 4 1 1 7 5 To Critical Strikes . | . . . . . . . . Average Slot Usage (%) 83 | . 87 94 91 83 80 76 73 Engine 7 | . 13 11 9 2 7 7 7 Core 1 | . . . . 4 . . . Treads 2 | . . . . . 3 6 7 Leg 14 | . 28 22 27 13 12 6 . Device 11 | . 6 11 11 8 6 21 29 Storage 8 | . 14 14 9 6 7 7 7 Processor 17 | . 3 12 15 21 30 13 15 Hackware 3 | . . . . 11 . . . Protection 1 | . . . 1 . 3 1 . Energy Gun 9 | . 20 22 16 12 . . 1 Energy Cannon 2 | . . . . . 7 5 3 Peak Build Rating 39 | 5 9 17 26 39 38 38 35 Average Rating 25 | 3 7 12 20 32 29 31 29 On Entrance 18 | . 5 9 17 17 32 38 30 Naked Turns . | . . . . . . . . Heaviest Build 55 | 12 16 37 44 38 42 55 42 Greatest Support 46 | 20 20 20 46 32 35 35 20 Greatest Overweight (x) 4 | 2 . 1 1 1 4 1 2 Average Overweight (x) . | . . . . . 1 1 1 Largest Inventory Capacity 15 | 8 8 15 15 15 15 15 10 Average Capacity 13 | 7 8 13 15 14 15 12 10 Most Carried 15 | 1 8 12 12 15 13 15 10 Average Carried 10 | . 5 9 10 12 10 10 9 Final Capacity 15 | 8 8 15 15 15 15 10 10 Final Carried 12 | 1 8 10 11 12 12 10 8 Class Distribution -------------------- 62% | Mutant 23% | Scavenger-Mutant 13% | Hacker-Mutant Dominant Class ---------------- Mutant | -10/Materials Mutant | -9/Materials Scavenger-Mutant | -8/Materials Hacker-Mutant | -7/Factory Mutant | -7/Lower Caves Mutant | -7/Lower Caves Mutant | -7/Data Miner Resources | -11 -10 -9 -8 -7 -7 -7 -7 ----------- Run | Yrd Mat Mat Mat Fac Low Low Dat Matter Collected 1281 | 241 51 110 200 346 80 253 . Remotely 115 | . . . 10 105 . . . Salvage Created 2347 | . 343 360 520 625 45 454 . Parts 96 | . 27 14 11 23 4 17 . Haulers Intercepted 2 | . . . 2 . . . . Recyclers Shooed 3 | . . . 3 . . . . Parts Field Recycled . | . . . . . . . . Retrieved Matter . | . . . . . . . . Parts Self-Destructed 15 | . . . . . 7 8 . Prevented 1 | . . . . . 1 . . Kills | -11 -10 -9 -8 -7 -7 -7 -7 ------- Run | Yrd Mat Mat Mat Fac Low Low Dat Combat Hostiles Destroyed 59 | . 11 8 8 14 2 16 . Guns 32 | . 11 7 5 9 . . . Cannons 9 | . . . . 1 2 6 . AOE 15 | . . . 3 2 . 10 . Classes Destroyed 12 | . 3 3 4 2 . . . Worker 1 | . 1 . . . . . . Builder 1 | . . . . 1 . . . Hauler 2 | . . . 2 . . . . Recycler 2 | . . . 2 . . . . Watcher 1 | . . 1 . . . . . Swarmer 8 | . 3 . . . 2 3 . Grunt 30 | . 8 4 2 6 . 10 . Brawler 3 | . . 1 . 1 . 1 . Duelist 1 | . . . 1 . . . . Sentry 10 | . . 3 3 2 . 2 . Hunter 4 | . . . 2 2 . . . Programmer 3 | . . . . 3 . . . Best Kill Streak 9 | . 9 4 3 5 1 7 . Combat Bots Only 8 | . 8 4 3 4 1 7 . Max Kills in Single Turn 5 | . 2 1 1 1 1 5 . Gunslinging . | . . . . . . . . Exploded 5 | . . . 1 1 . 5 . Melee . | . . . . . . . . Uniques/NPCs Destroyed . | . . . . . . . . Combat | -11 -10 -9 -8 -7 -7 -7 -7 -------- Run | Yrd Mat Mat Mat Fac Low Low Dat Hostile Shots Fired 376 | . 66 28 73 126 7 67 9 Missed 122 | . 29 9 22 41 1 18 2 Damage Taken 4280 | . 437 251 1039 1134 90 1009 320 Core 1054 | . 127 40 147 367 26 202 145 Absorbed by Shields . | . . . . . . . . Core Remaining (%) 78 | 100 49 90 73 . . . . Volleys Fired 213 | . 32 22 52 56 6 37 8 Largest 2 | . 2 2 2 2 1 2 2 Hottest 135 | . 115 130 130 134 75 135 135 Shots Fired 344 | . 51 44 91 94 9 46 9 Gun 263 | . 51 44 85 80 . 2 1 Cannon 57 | . . . . 12 9 29 7 Launcher 24 | . . . 6 2 . 15 1 Special . | . . . . . . . . Kinetic . | . . . . . . . . Thermal 320 | . 51 44 85 92 9 31 8 Explosive 24 | . . . 6 2 . 15 1 Electromagnetic . | . . . . . . . . Robot Hit Streak 22 | . 8 13 16 22 10 10 3 Robot Miss Streak 7 | . 5 3 7 2 1 1 3 Penetration Max . | . . . . . . . . Secondary Targets . | . . . . . . . . Shots Hit Robots 233 | . 33 32 61 68 4 30 5 Core Hits 117 | . 19 12 23 27 2 32 2 Critical Kills . | . . . . . . . . Critical Parts Destroyed . | . . . . . . . . Critical Strikes 12 | . 5 2 2 3 . . . Burn 12 | . 5 2 2 3 . . . Melee Attacks . | . . . . . . . . Impact . | . . . . . . . . Slashing . | . . . . . . . . Piercing . | . . . . . . . . Sneak Attacks . | . . . . . . . . Combat Hostiles . | . . . . . . . . Follow-up Attacks . | . . . . . . . . Damage Inflicted 5571 | . 470 486 1200 1499 100 1620 196 Guns 3024 | . 464 479 901 1137 . . 43 Cannons 790 | . . . . 75 100 581 34 Explosions 1744 | . . . 299 287 . 1039 119 Melee . | . . . . . . . . Ramming 13 | . 6 7 . . . . . Kinetic . | . . . . . . . . Thermal 3814 | . 464 479 901 1212 100 581 77 Explosive 1744 | . . . 299 287 . 1039 119 Electromagnetic . | . . . . . . . . Impact . | . . . . . . . . Slashing . | . . . . . . . . Piercing . | . . . . . . . . Highest Corruption 20 | . . . . 5 5 20 20 Average Corruption 9 | . . . . 3 5 16 20 Corruption Purged . | . . . . . . . . Corruption Blocked . | . . . . . . . . Effects 102 | . . . . 16 28 45 13 Message Errors 19 | . . . . 3 8 8 . Matter Fused 23 | . . . . 5 6 9 3 Heat Flow Errors 12 | . . . . . 5 6 1 Energy Discharges 10 | . . . . . . 8 2 Parts Rejected 1 | . . . . 1 . . . Parts Fused 1 | . . . . . . 1 . Data Loss (minor) 15 | . . . . 6 4 3 2 Data Loss (major) 9 | . . . . 1 2 4 2 Misfires 6 | . . . . . 3 3 . Alerts 4 | . . . . . . 1 3 Weapon Failures 2 | . . . . . . 2 . Overload Shots 3 | . . . . . . 2 1 Overflow Damage 112 | . . . . 22 . 90 . Projectiles 26 | . . . . 6 . 20 . Explosions 86 | . . . . 16 . 70 . Melee . | . . . . . . . . Knockbacks . | . . . . . . . . Impact . | . . . . . . . . Kinetic . | . . . . . . . . Secondary . | . . . . . . . . Self-Inflicted Damage 111 | . . . . 48 . 63 . Shots 3 | . . . . 2 . 1 . Rammed . | . . . . . . . . Targets Rammed 5 | . 3 2 . . . . . Kicked 5 | . 3 2 . . . . . Crushed . | . . . . . . . . Highest Temperature 291 | . 243 208 210 291 243 244 261 Average Temperature 93 | . 90 91 93 109 84 88 105 Received Heat Transfer 933 | . 144 105 225 219 . 240 . Siege Activations . | . . . . . . . . Robots Corrupted . | . . . . . . . . Combat Hostiles . | . . . . . . . . Parts Fried . | . . . . . . . . Impact Corruptions . | . . . . . . . . Robots Melted 3 | . . 1 . 2 . . . Combat Hostiles 3 | . . 1 . 2 . . . Parts Melted 36 | . 4 5 13 13 . 1 . Heat Transferred 9041 | . 1628 1332 2294 2664 148 851 124 Parts Sabotaged . | . . . . . . . . Parts Stolen . | . . . . . . . . Parts Stripped . | . . . . . . . . Power Chain Reactions . | . . . . . . . . Alert | -11 -10 -9 -8 -7 -7 -7 -7 ------- Run | Yrd Mat Mat Mat Fac Low Low Dat Peak Influence 359 | . 359 211 290 187 . . . Initial 69 | . . 69 51 59 . . . Average 106 | . 120 100 193 71 . . . Maximum Alert Level 1 | . 1 1 1 . . . . Low Security (%) 87 | 100 83 94 52 100 . . . Level 1 12 | . 16 5 47 . . . . Level 2 . | . . . . . . . . Level 3 . | . . . . . . . . Level 4 . | . . . . . . . . Level 5 . | . . . . . . . . High Security . | . . . . . . . . Max Security . | . . . . . . . . Squads Dispatched 8 | . 2 1 1 4 . . . Investigation 4 | . 1 1 1 1 . . . Extermination 2 | . . . . 2 . . . Reinforcement 2 | . 1 . . 1 . . . Assault . | . . . . . . . . Garrison . | . . . . . . . . Intercept . | . . . . . . . . Searches Triggered . | . . . . . . . . Construction Impeded . | . . . . . . . . Haulers Reinforced . | . . . . . . . . Active Scanning Responses . | . . . . . . . . Cargo Convoy Interrupts . | . . . . . . . . Stealth | -11 -10 -9 -8 -7 -7 -7 -7 --------- Run | Yrd Mat Mat Mat Fac Low Low Dat Distress Signals 2 | . . 1 . 1 . . . Communications Jammed . | . . . . . . . . Distress Signals . | . . . . . . . . Times Spotted 84 | . 21 10 15 16 2 18 2 Peak Tracking Total 7 | . 7 3 5 4 1 7 2 Tactical Retreats 4 | . 2 . . . . 2 . Traps | -11 -10 -9 -8 -7 -7 -7 -7 ------- Run | Yrd Mat Mat Mat Fac Low Low Dat Traps Triggered 6 | . 1 1 1 3 . . . Indirectly . | . . . . . . . . Trap Hack Attempts . | . . . . . . . . Triggered . | . . . . . . . . Disarmed 1 | . . 1 . . . . . Reprogrammed . | . . . . . . . . Reused . | . . . . . . . . Traps Extracted . | . . . . . . . . Installed . | . . . . . . . . Triggered 1 | . . . . . 1 . . Machines | -11 -10 -9 -8 -7 -7 -7 -7 ---------- Run | Yrd Mat Mat Mat Fac Low Low Dat Machines Disabled 7 | . . . 1 . . 5 1 Max in Single Turn 4 | . . . 1 . . 4 1 Machines Repaired . | . . . . . . . . Machines Dismantled . | . . . . . . . . Machines Sabotaged . | . . . . . . . . Overloaded Fab Kills . | . . . . . . . . Hacking | -11 -10 -9 -8 -7 -7 -7 -7 --------- Run | Yrd Mat Mat Mat Fac Low Low Dat Machines Accessed 17 | . 3 3 3 3 1 . 4 Terminals 10 | . 3 3 2 2 . . . Fabricators 1 | . . . . 1 . . . Repair Stations . | . . . . . . . . Recycling Units 1 | . . . 1 . . . . Scanalyzers . | . . . . . . . . Garrison Access . | . . . . . . . . Total Hacks 66 | . 8 10 8 8 1 . 31 Successful 47 | . 4 7 2 2 1 . 31 Failed 19 | . 4 3 6 6 . . . Catastrophic 4 | . 1 1 1 1 . . . Database Lockouts . | . . . . . . . . Manual 12 | . 3 6 3 . . . . Terminals 30 | . 8 10 5 7 . . . Fabricators 1 | . . . . 1 . . . Repair Stations . | . . . . . . . . Recycling Units 3 | . . . 3 . . . . Scanalyzers . | . . . . . . . . Garrison Access . | . . . . . . . . Terminal Hacks 40 | . 3 4 . 1 1 . 31 Record 12 | . . . . . 1 . 11 Part Schematic 12 | . . . . . . . 12 Robot Schematic 5 | . . . . . . . 5 Robot Analysis 2 | . 1 1 . . . . . Prototype ID Bank 5 | . 1 . . 1 . . 3 Branch Access Points 1 | . 1 . . . . . . Disarm Traps 1 | . . 1 . . . . . Registered Components 1 | . . 1 . . . . . Registered Prototypes 1 | . . 1 . . . . . Fabricator Hacks 1 | . . . . 1 . . . Network Status 1 | . . . . 1 . . . Repair Station Hacks . | . . . . . . . . Recycling Unit Hacks 2 | . . . 2 . . . . Report Inventory 1 | . . . 1 . . . . Retrieve Components 1 | . . . 1 . . . . Scanalyzer . | . . . . . . . . Garrison Access Hacks . | . . . . . . . . Unauthorized Hacks 4 | . 1 3 . . . . . Terminals 4 | . 1 3 . . . . . Assimilate 1 | . . 1 . . . . . Botnet 3 | . 1 2 . . . . . Fabricators . | . . . . . . . . Repair Stations . | . . . . . . . . Recycling Units . | . . . . . . . . Scanalyzers . | . . . . . . . . Garrison Access . | . . . . . . . . Data Cores Recovered . | . . . . . . . . Used . | . . . . . . . . Hacking Detections 7 | . 2 2 2 1 . . . Full Trace Events 3 | . 1 . 1 1 . . . Feedback Events . | . . . . . . . . Feedback Blocked . | . . . . . . . . Robot Schematics Acquired 5 | . . . . . . . 5 Robots Built . | . . . . . . . . Authchips . | . . . . . . . . Time . | . . . . . . . . Total Robot Build Rating . | . . . . . . . . Part Schematics Acquired 12 | . . . . . . . 12 Parts Built . | . . . . . . . . Authchips . | . . . . . . . . Time . | . . . . . . . . Total Part Build Rating . | . . . . . . . . Parts Repaired . | . . . . . . . . Time . | . . . . . . . . Parts Recycled . | . . . . . . . . Recycled Matter . | . . . . . . . . Retrieved Matter . | . . . . . . . . Retrieved Components 9 | . . . 9 . . . . Parts Scanalyzed . | . . . . . . . . Part Schematics Acquired . | . . . . . . . . Parts Damaged . | . . . . . . . . Bothacking | -11 -10 -9 -8 -7 -7 -7 -7 ------------ Run | Yrd Mat Mat Mat Fac Low Low Dat Used RIF Installer . | . . . . . . . . Robots Hacked . | . . . . . . . . Non-combat . | . . . . . . . . Combat . | . . . . . . . . Robot Hacks Applied . | . . . . . . . . Relay Couplers Released . | . . . . . . . . Fabnet Peak Effective % . | . . . . . . . . Robots Rewired . | . . . . . . . . Allies Hacked . | . . . . . . . . Hacks Repelled . | . . . . . . . . Allies | -11 -10 -9 -8 -7 -7 -7 -7 -------- Run | Yrd Mat Mat Mat Fac Low Low Dat Total Allies 1 | . . 1 . . . . . Largest Group 1 | . . 1 . . . . . Highest-Rated Group 10 | . . 10 . . . . . Highest-Rated Ally 10 | . . 10 . . . . . Total Orders . | . . . . . . . . Ally Attacks . | . . . . . . . . Total Damage . | . . . . . . . . Kills . | . . . . . . . . Allies Corrupted . | . . . . . . . . Allies Melted . | . . . . . . . . Intel | -11 -10 -9 -8 -7 -7 -7 -7 ------- Run | Yrd Mat Mat Mat Fac Low Low Dat Robot Analysis Total 2 | . 1 1 . . . . . Derelict Logs Recovered 1 | . . . . . . 1 . Drone Launches . | . . . . . . . . Drone Recoveries . | . . . . . . . . Exploration | -11 -10 -9 -8 -7 -7 -7 -7 ------------- Run | Yrd Mat Mat Mat Fac Low Low Dat Turns Passed 5977 | 53 501 743 641 1481 1103 1197 258 Spaces Moved 2742 | 40 321 368 271 673 476 498 95 Core 13 | 8 . . . 5 . . . Treads 475 | . . . . . 122 258 95 Legs 2254 | 32 321 368 271 668 354 240 . Wheels . | . . . . . . . . Hover . | . . . . . . . . Flight . | . . . . . . . . Fastest Speed 50 | 50 120 120 123 100 190 190 240 Average Speed 186 | 112 120 170 166 182 226 215 247 Slowest Speed 400 | 150 120 190 200 200 400 240 320 Overloaded Moves . | . . . . . . . . Propulsion Burnouts . | . . . . . . . . Robots Hopped . | . . . . . . . . Cave-ins Triggered . | . . . . . . . . Exploration Rate (%) 42 | 3 61 31 30 19 58 61 77 Regions Visited 7 Branch Regions 3 Pre-discovered Areas 1 | . . . . . . . 1 Known Exits Taken 3 | . . . . 1 1 1 . Unknown Exits Taken 4 | 1 1 1 1 . . . . Scrap Searched 3 | . . . . . . 3 . Spaces Dug . | . . . . . . . . Terrain Destroyed 202 | . . . 42 22 . 130 8 Melee . | . . . . . . . . Projectile 3 | . . . . . . 3 . AOE 199 | . . . 42 22 . 127 8 Terrain Rammed . | . . . . . . . . Walls Destroyed . | . . . . . . . . Machines Disabled . | . . . . . . . . Actions | -11 -10 -9 -8 -7 -7 -7 -7 --------- Run | Yrd Mat Mat Mat Fac Low Low Dat Total 3256 | 45 385 440 368 840 496 573 109 Wait 101 | . 11 23 18 32 2 13 2 Move 2735 | 39 320 367 270 672 475 497 95 Hop . | . . . . . . . . Pick Up 57 | 1 10 6 7 23 2 8 . Fast Attach 30 | 5 1 2 5 11 3 2 1 Attach 36 | . 3 1 3 14 2 11 2 Detach 11 | . . . . 7 2 2 . Swap 22 | . 2 7 7 4 1 1 . Drop 41 | . 3 10 6 16 3 2 1 Fire 213 | . 32 22 52 56 6 37 8 Melee . | . . . . . . . . Ram . | . . . . . . . . Kick 5 | . 3 2 . . . . . Crush . | . . . . . . . . Escape Stasis 5 | . . . . 5 . . . Rewire . | . . . . . . . . Trap . | . . . . . . . . Miscellaneous . | . . . . . . . . Route ------- -11/Scrapyard -10/Materials (discovered 2 exits: *Mat / *Min) -9/Materials -8/Materials -7/Factory (discovered 3 exits: *Fac / *Sto / *Low) -7/Lower Caves -7/Lower Caves (discovered 2 exits: *Fac / *Dat) -7/Data Miner (discovered 1 exit: *Pro) History --------- Turn | Location | Event 20 | -11/Scrapyard | Discovered new exit (range 15) 54 | -11/Scrapyard | Entered Materials 166 | -10/Materials | Discovered new exit (range 16) 318 | -10/Materials | Build established: Mutant 416 | -10/Materials | Core integrity fell below 50% 443 | -10/Materials | Destroyed 8 combat bots 499 | -10/Materials | Discovered new exit (range 12) 501 | -10/Materials | Identified exit to Mines 555 | -10/Materials | Entered another Materials area 555 | -9/Materials | Evolved 2 slots: Utility x2 974 | -9/Materials | Discovered new exit (range 4) 1298 | -9/Materials | Entered another Materials area 1298 | -8/Materials | Evolved 2 slots: Propulsion x1, Utility x1 1572 | -8/Materials | Build established: Scavenger-Mutant 1732 | -8/Materials | Discovered new exit (range 6) 1939 | -8/Materials | Entered Factory 1939 | -7/Factory | Evolved 2 slots: Utility x2 1967 | -7/Factory | Lost 4 parts (2n1u1w) 2280 | -7/Factory | Build established: Hacker-Mutant 2733 | -7/Factory | Discovered new exit (range 8) 2744 | -7/Factory | Identified exit to Storage 3042 | -7/Factory | Discovered new exit (range 19) 3082 | -7/Factory | Identified exit to Lower Caves 3109 | -7/Factory | Build established: Mutant 3210 | -7/Factory | Discovered new exit (range 19) 3272 | -7/Factory | Identified exit to Factory 3392 | -7/Factory | Core integrity fell below 50% 3420 | -7/Factory | Entered Lower Caves 3568 | -7/Lower Caves | Encountered a Warlord checkpoint 4340 | -7/Lower Caves | Build established: Scavenger-Mutant 4515 | -7/Lower Caves | Discovered new exit (range 4) 4521 | -7/Lower Caves | Identified exit to Lower Caves 4523 | -7/Lower Caves | Entered another Lower Caves area 4599 | -7/Lower Caves | Discovered exit to Factory (range 5) 4685 | -7/Lower Caves | Attracted the attention of an 0b10 checkpoint 4826 | -7/Lower Caves | System corruption reached 10% 4859 | -7/Lower Caves | Lost 7 parts (1p6u) 5015 | -7/Lower Caves | Learned 4 Factory zone layouts 5067 | -7/Lower Caves | Attracted the attention of an 0b10 base 5079 | -7/Lower Caves | Core integrity fell below 20% 5110 | -7/Lower Caves | Destroyed 7 combat bots 5111 | -7/Lower Caves | Lost 5 parts (3n2w) 5116 | -7/Lower Caves | Build established: Mutant 5268 | -7/Lower Caves | Discovered new exit (range 15) 5315 | -7/Lower Caves | Identified exit to Data Miner 5720 | -7/Lower Caves | Entered Data Miner 5720 | -7/Data Miner | Discovered new exit (range 6) 5730 | -7/Data Miner | Identified exit to Proximity Caves 5768 | -7/Data Miner | Met Data Miner 5839 | -7/Data Miner | Acquired the access code to Warlord's prototype stash 5839 | -7/Data Miner | Learned location of Section 7 (-3) 5882 | -7/Data Miner | Received God Mode back door access code from Data Miner 5947 | -7/Data Miner | Data Conduit disabled 5978 | -7/Data Miner | Destroyed by Enhanced Grunt with Neutron Cannon Last Messages --------------- 05858_ System corrupted: Component data lost. 05878_ System corrupted: IFF burst signal emitted. Data Miner: I've just received further instructions. God Mode is nearly complete and we think you might be able to put it to better use than Warlord, so if you see an opportunity, hack it and enter \\A9MX to gain control via the back door I've installed. Now off with you. 05899_ System corrupted: Heat flow error (+299). 05906_ Acquired Hvy. Particle Cannon. 05918_ System corrupted: Matter fused (-10). 05942_ System corrupted: Energy discharge (-101). 05947_ Data Miner disappears through a trap door. 05947_ Data Conduit disabled. 05957_ System corrupted: Component data lost. 05966_ Particle Charger destroyed. 05972_ System corrupted: Matter fused (-7). 05973_ Lgt. Treads destroyed. 05976_ Imp. Terrain Scanner destroyed. 05976_ Thermal Generator destroyed. 05976_ Hvy. Particle Cannon destroyed. Map ----- +----------------------------------------------------+ | | | | | | | | | | | | | | | | | | | | | | | | | | | | | ??#####??##?######?##?######???##?# | | ????############?##########?#???### | | ?###?###########?#??###?#####?##??# | | #???###??#??##?#####?#####?##?##### | | ?#???##################?#######??## | | ?#??#?####################?##??#??# | | ?##?#""""""""""""""" ### #???# ## | | ???#""""""""" "" " ########## | | ?##"""""""""" | | ?##"""""" g | | ??#""""""" g | | ?##""""" @ | | ###""""""" | | #?#""""""" """"""""""" | | ##?""""""" ""######### | | ??##""""""" """"" ########## | | ###?#"""""""" "#############?? | | ?#?#########"## "##########?#?#? | | ?#?#######?#"### "###########???# | | ??#?########"### "####?######?### | | ?######?####"## "####???####?##? | | #?##########"## "############?#? | | ?##?"""""?##?# "##?######?#???? | | #??#??""""##"### "##?###########? | | ?###"""??"##"### "####?#?####??## | | ???#""""?"?#"### ""####?#?#?##??? | | ?#???"?""??#"## ""##?##?#?##???? | | ????####??##"#"X ""##?##?#??##??? | | ???#####??""""" "######?#??#??# | | #?##?####?""""" X"""""#??#?#???? | | ??##?#######"#"X "##"#####?#???? | | ???#?#??#??#"## X""""##??#?#???? | | ??#?###?###?"### "##"###??##???? | | ?????##?#?#??#?#######??####?##???? | | ??#??###?#??"####?#?#?#"????#??#??? | | ???##?#?####"?#?#####?#??##???????? | +----------------------------------------------------+ Best States ------------- Heat Dissipation 61 Energy Generation 16 Energy Capacity 290 Matter Stores 300 Matter Capacity 300 Sight Range 20 Terrain Scan Range 16 Terrain Scan Density 110 Armor Coverage 225 Evasion (%) 55 Targeting Accuracy 8 Recoil Reduction 1 Particle Charging 15 Defensive Hacking 20 Item Schematics ----------------- Combat Drone Bay | -7/Data Miner | Free Lgt. Regenerative Plating | -7/Data Miner | Free Cld. Aerolev Unit | -7/Data Miner | Free Thermal Defense Suite | -7/Data Miner | Free Cld. Plasma Cannon | -7/Data Miner | Free Gyrokinetic Inverter | -7/Data Miner | Free Adv. Drone Bay | -7/Data Miner | Free Lrn. Proton Cannon | -7/Data Miner | Free Disruptor Cannon | -7/Data Miner | Free Thermal Shield | -7/Data Miner | Free Adv. Medium Treads | -7/Data Miner | Free Adv. Power Amplifier | -7/Data Miner | Free Robot Schematics ------------------ M-14 Sweeper | -7/Data Miner | Free H-66 Slayer | -7/Data Miner | Free H-55 Commando | -7/Data Miner | Free W-25 Informer | -7/Data Miner | Free R-10 Processor | -7/Data Miner | Free Fabricated ------------ Nothing Alien Tech Used ----------------- None Achievements -------------- Quick And Dirty Challenges ------------ None Game ------ Seed BottomlessFlightCorpse Manual? 0 Play Time 00:55:25 Cumulative 58.5 hours Start 2025.04.28 @ 13:03:21 End 2025.04.29 @ 20:14:20 Sessions 3 Manual Loads 0 Difficulty Rogue Special Mode None Game No. 68 Rogue 67 Adventurer 1 Explorer 0 Win Type - Total 1 Types 1/0/0/0/0/0/0/0/0 Lore% 38 Gallery% 45 Achievement% 41 Wizard Run 0 Options --------- Layout 0 ASCII 0 Keyboard 0 Movement Numpad Keybinds 0 Fullscreen 1 Font 18/SmallcapsGlow Map View 76x50 Zoom Use 0% Tactical HUD 1 Map Filters NONE Filters NONE Steam 1 RUN: 0bd88704-ece2-45fc-93a7-341b8c378d59